fUSD/lending_fUSD_20251226
["ID","MTS","AMOUNT","RATE_DAILY","PERIOD"]
[399837863,1766724640820,-135038.32671919,0.00017,2]
[399837866,1766724640841,-1779.985,0.00017,2]
[399837951,1766724643117,-17760.4999998,0.00017,2]
[399837958,1766724645860,-8045.91782727,0.00017,2]
[399837959,1766724646023,-1962.998755,0.00017,2]
[399837960,1766724646039,-310.546,0.00017,2]
[399837961,1766724646133,-581.45672485,0.00017,2]
[399838009,1766725287823,-154.88,0.00015553,2]
[399838010,1766725287846,-1200.0,0.00015601,2]
[399838011,1766725287869,-165.12,0.00015601,2]
[399838031,1766725831944,-200.0,0.00014886,2]
[399838032,1766725831954,-150.0,0.00015288,2]
[399838033,1766725831964,-556.816,0.00015318,2]
[399838034,1766725831977,-626.486,0.00015318,2]
[399838035,1766725831987,-195.0,0.00015318,2]
[399838036,1766725831997,-170.31,0.00015318,2]
[399838037,1766725832006,-775.54863958,0.00015448,2]
[399838038,1766725832018,-5023.18587019,0.00015448,2]
[399838039,1766725832028,-150.61383604,0.00015448,2]
[399838040,1766725832039,-200.0,0.00015499,2]
[399838041,1766725832049,-480.0,0.00015529,2]
[399838042,1766725832059,-5513.51922885,0.0001553,2]
[399838043,1766725832071,-518.0,0.0001553,2]
[399838044,1766725832082,-322.59321388,0.0001553,2]
[399838045,1766725832099,-9108.43118675,0.0001553,2]
[399838046,1766725832111,-260.03248731,0.0001553,2]
[399838047,1766725832126,-391.75547949,0.0001553,2]
[399838048,1766725832138,-1190.51079332,0.0001553,2]
[399838049,1766725832150,-731.01688365,0.0001553,2]
[399838050,1766725832179,-1618.14212,0.0001553,2]
[399838051,1766725832192,-1713.16272951,0.0001553,2]
[399838055,1766725838095,-366.15444636,0.0001553,2]
[399838056,1766725838151,-542.46609112,0.0001553,2]
[399838057,1766725838209,-7790.95474644,0.0001553,2]
[399838058,1766725838221,-3671.06059036,0.0001553,2]
[399838059,1766725838233,-155816.35348617,0.0001553,2]
[399838060,1766725838265,-32633.9999999,0.0001553,2]
[399838116,1766725840094,-725.91164319,0.0001553,2]
[399838117,1766725840106,-258.39013124,0.0001553,2]
[399838118,1766725840118,-11863.90178919,0.0001553,2]
[399838119,1766725840129,-2335.93824332,0.0001553,2]
[399838120,1766725840141,-2666.73926865,0.0001553,2]
[399838121,1766725840254,-759960.9654413,0.0001553,2]
[399838122,1766725840265,-150.0,0.00015548,2]
[399838123,1766725840276,-334.88,0.00015601,2]
[399838124,1766725840285,-2963.909083,0.00015602,2]
[399838125,1766725840296,-189.35183206,0.00015605,2]
[399838126,1766725840308,-10195.56443738,0.00015605,2]
[399838127,1766725840319,-174.76365263,0.00015605,2]
[399838128,1766725840328,-5798.73450971,0.00015609,2]
[399838129,1766725840340,-207.4,0.00015621,2]
[399838130,1766725840350,-1000.0,0.00015625,2]
[399838131,1766725840360,-500.0,0.00015625,2]
[399838132,1766725840369,-500.0,0.00015625,2]
[399838133,1766725840382,-500.0,0.00015625,2]
[399838134,1766725840393,-500.0,0.00015625,2]
[399838135,1766725840403,-500.0,0.00015625,2]
[399838136,1766725840413,-302.73865746,0.00015625,2]
[399838137,1766725840423,-500.0,0.00015625,2]
[399838138,1766725840433,-500.0,0.00015625,2]
[399838139,1766725840443,-500.0,0.00015625,2]
[399838140,1766725840453,-500.0,0.00015625,2]
[399838141,1766725840463,-500.0,0.00015625,2]
[399838142,1766725840473,-500.0,0.00015625,2]
[399838143,1766725840484,-500.0,0.00015625,2]
[399838144,1766725840494,-500.0,0.00015625,2]
[399838145,1766725840504,-500.0,0.00015625,2]
[399838146,1766725840515,-500.0,0.00015625,2]
[399838147,1766725840524,-500.0,0.00015625,2]
[399838148,1766725840534,-500.0,0.00015625,2]
[399838149,1766725840544,-500.0,0.00015625,2]
[399838150,1766725840554,-500.0,0.00015625,2]
[399838151,1766725840563,-500.0,0.00015625,2]
[399838152,1766725840574,-500.0,0.00015625,2]
[399838153,1766725840584,-500.0,0.00015625,2]
[399838154,1766725840593,-500.0,0.00015625,2]
[399838155,1766725840603,-500.0,0.00015625,2]
[399838156,1766725840614,-500.0,0.00015625,2]
[399838157,1766725840623,-500.0,0.00015625,2]
[399838158,1766725840634,-500.0,0.00015625,2]
[399838159,1766725840644,-500.0,0.00015625,2]
[399838160,1766725840654,-500.0,0.00015625,2]
[399838161,1766725840664,-500.0,0.00015625,2]
[399838162,1766725840674,-500.0,0.00015625,2]
[399838163,1766725840684,-500.0,0.00015625,2]
[399838164,1766725840694,-500.0,0.00015625,2]
[399838165,1766725840703,-500.0,0.00015625,2]
[399838166,1766725840713,-500.0,0.00015625,2]
[399838167,1766725840723,-500.0,0.00015625,2]
[399838168,1766725840733,-500.0,0.00015625,2]
[399838169,1766725840743,-500.0,0.00015625,2]
[399838170,1766725840752,-503.78059227,0.00015625,2]
[399838171,1766725840762,-500.0,0.00015625,2]
[399838172,1766725840772,-500.0,0.00015625,2]
[399838173,1766725840781,-500.0,0.00015625,2]
[399838174,1766725840792,-500.0,0.00015625,2]
[399838175,1766725840801,-151.0,0.00015628,2]
[399838176,1766725840811,-151.0,0.00015628,2]
[399838177,1766725840820,-276.32,0.00015628,2]
[399838178,1766725840830,-187.42921521,0.0001563,2]
[399838179,1766725840840,-500.0,0.0001563,2]
[399838180,1766725840850,-500.0,0.0001563,2]
[399838181,1766725840859,-500.0,0.0001563,2]
[399838182,1766725840869,-150.0,0.00015705,2]
[399838183,1766725840879,-351.65,0.00015705,2]
[399838184,1766725840889,-1205.68,0.00015705,2]
[399838185,1766725840898,-1195.28,0.00015705,2]
[399838187,1766725840908,-10195.56443735,0.00015749,2]
[399838189,1766725840918,-5798.73450971,0.00015771,2]
[399838190,1766725840928,-3884.54,0.00015802,2]
[399838191,1766725840938,-1852.42,0.00015869,2]
[399838192,1766725840947,-10195.56443735,0.00015893,2]
[399838193,1766725840957,-276.32,0.00015902,2]
[399838194,1766725840967,-5798.73450971,0.00015932,2]
[399838195,1766725840977,-150.0,0.00015978,2]
[399838196,1766725840987,-10195.56443735,0.00016037,2]
[399838197,1766725840996,-481.45,0.00016055,2]
[399838198,1766725841007,-5798.73450971,0.00016093,2]
[399838199,1766725841017,-620.0,0.00016149,2]
[399838200,1766725841027,-322.6107,0.00016149,2]
[399838201,1766725841037,-508.90835049,0.00016149,2]
[399838202,1766725841047,-250.0,0.00016149,2]
[399838203,1766725841056,-500.0,0.00016149,2]
[399838204,1766725841066,-500.0,0.00016149,2]
[399838205,1766725841076,-862.11858187,0.00016149,2]
[399838206,1766725841086,-250.0,0.00016149,2]
[399838207,1766725841095,-500.0,0.00016149,2]
[399838208,1766725841105,-250.0,0.00016149,2]
[399838209,1766725841115,-500.0,0.00016149,2]
[399838210,1766725841125,-500.0,0.00016149,2]
[399838211,1766725841135,-250.0,0.00016149,2]
[399838212,1766725841145,-500.0,0.00016149,2]
[399838213,1766725841155,-500.0,0.00016149,2]
[399838214,1766725841165,-250.0,0.00016149,2]
[399838215,1766725841175,-500.0,0.00016149,2]
[399838216,1766725841185,-500.0,0.00016149,2]
[399838217,1766725841194,-500.0,0.00016149,2]
[399838218,1766725841204,-250.0,0.00016149,2]
[399838219,1766725841213,-500.0,0.00016149,2]
[399838220,1766725841223,-500.0,0.00016149,2]
[399838221,1766725841233,-250.0,0.00016149,2]
[399838222,1766725841243,-500.0,0.00016149,2]
[399838223,1766725841253,-500.0,0.00016149,2]
[399838224,1766725841263,-153.55596383,0.00016149,2]
[399838225,1766725841274,-250.0,0.00016149,2]
[399838226,1766725841284,-500.0,0.00016149,2]
[399838227,1766725841293,-574.12855637,0.00016149,2]
[399838228,1766725841307,-500.0,0.00016149,2]
[399838229,1766725841316,-500.0,0.00016149,2]
[399838230,1766725841326,-250.0,0.00016149,2]
[399838231,1766725841338,-500.0,0.00016149,2]
[399838232,1766725841348,-250.0,0.00016149,2]
[399838233,1766725841358,-500.0,0.00016149,2]
[399838234,1766725841368,-250.0,0.00016149,2]
[399838235,1766725841379,-500.0,0.00016149,2]
[399838236,1766725841389,-500.0,0.00016149,2]
[399838237,1766725841399,-500.0,0.00016149,2]
[399838238,1766725841409,-250.0,0.00016149,2]
[399838239,1766725841419,-578.20924308,0.00016149,2]
[399838240,1766725841429,-250.0,0.00016149,2]
[399838241,1766725841439,-264.00582044,0.00016149,2]
[399838242,1766725841450,-164.41411532,0.00016149,2]
[399838243,1766725841460,-200.0,0.00016149,2]
[399838244,1766725841470,-734.83730982,0.00016149,2]
[399838245,1766725841480,-207.4,0.00016149,2]
[399838246,1766725841490,-215.0738,0.00016149,2]
[399838247,1766725841499,-223.0315306,0.00016149,2]
[399838248,1766725841509,-231.28369723,0.00016149,2]
[399838249,1766725841519,-239.84119403,0.00016149,2]
[399838250,1766725841528,-248.71531821,0.00016149,2]
[399838251,1766725841538,-1088.67069402,0.00016149,2]
[399838252,1766725841548,-250.0,0.00016149,2]
[399838253,1766725841558,-257.91778498,0.00016149,2]
[399838254,1766725841568,-250.0,0.00016149,2]
[399838255,1766725841578,-267.46074303,0.00016149,2]
[399838256,1766725841588,-250.0,0.00016149,2]
[399838257,1766725841598,-277.35679052,0.00016149,2]
[399838258,1766725841608,-250.0,0.00016149,2]
[399838259,1766725841618,-250.0,0.00016149,2]
[399838260,1766725841627,-514.20631806,0.00016149,2]
[399838261,1766725841865,-250.0,0.00016149,2]
[399838262,1766725841875,-272.86159702,0.00016149,2]
[399838263,1766725841885,-250.0,0.00016149,2]
[399838264,1766725841896,-250.0,0.00016149,2]
[399838265,1766725841906,-259.84169002,0.00016149,2]
[399838266,1766725841915,-151.0,0.00016149,2]
[399838267,1766725841925,-276.32,0.00016176,2]
[399838268,1766725841936,-150.0,0.00016178,2]
[399838269,1766725841946,-10195.56443735,0.00016181,2]
[399838270,1766725841956,-160.19915841,0.00016183,2]
[399838271,1766725841966,-500.0,0.00016183,2]
[399838272,1766725841977,-500.31332609,0.00016183,2]
[399838273,1766725841986,-500.44282542,0.00016183,2]
[399838274,1766725841996,-500.23580689,0.00016183,2]
[399838275,1766725842005,-500.0,0.00016183,2]
[399838276,1766725842015,-160.31329794,0.00016183,2]
[399838277,1766725842025,-500.4331063,0.00016183,2]
[399838278,1766725842035,-162.40882811,0.00016183,2]
[399838279,1766725842045,-500.0,0.00016183,2]
[399838280,1766725842055,-500.0,0.00016183,2]
[399838281,1766725842065,-500.36407423,0.00016183,2]
[399838282,1766725842074,-502.41502737,0.00016183,2]
[399838283,1766725842084,-501.60858942,0.00016183,2]
[399838284,1766725842094,-160.31325962,0.00016183,2]
[399838285,1766725842103,-160.3110379,0.00016183,2]
[399838286,1766725842113,-160.30850939,0.00016183,2]
[399838287,1766725842123,-160.36502821,0.00016183,2]
[399838288,1766725842134,-500.65805636,0.00016183,2]
[399838289,1766725842144,-500.0,0.00016183,2]
[399838290,1766725842159,-500.0,0.00016183,2]
[399838291,1766725842169,-376.78,0.00016192,2]
[399838292,1766725842179,-150.0,0.00016192,2]
[399838293,1766725842188,-150.0,0.00016192,2]
[399838294,1766725842199,-152.2363195,0.00016257,2]
[399838295,1766725842209,-308.98,0.00016318,2]
[399838296,1766725842218,-10195.56443735,0.00016324,2]
[399838297,1766725842228,-150.0,0.00016378,2]
[399838298,1766725842238,-2114.0,0.00016434,2]
[399838299,1766725842249,-500.0,0.00016438,2]
[399838300,1766725842259,-500.0,0.00016438,2]
[399838301,1766725842269,-500.0,0.00016438,2]
[399838302,1766725842279,-500.0,0.00016438,2]
[399838303,1766725842289,-500.0,0.00016438,2]
[399838304,1766725842302,-500.0,0.00016438,2]
[399838305,1766725842312,-500.0,0.00016438,2]
[399838306,1766725842322,-500.0,0.00016438,2]
[399838307,1766725842332,-500.0,0.00016438,2]
[399838308,1766725842343,-500.0,0.00016438,2]
[399838309,1766725842353,-500.0,0.00016438,2]
[399838310,1766725842363,-500.0,0.00016438,2]
[399838311,1766725842374,-500.0,0.00016438,2]
[399838312,1766725842383,-500.0,0.00016438,2]
[399838313,1766725842394,-358.18637614,0.00016438,2]
[399838314,1766725842404,-500.0,0.00016438,2]
[399838315,1766725842414,-500.0,0.00016438,2]
[399838316,1766725842425,-500.0,0.00016438,2]
[399838317,1766725842436,-500.0,0.00016438,2]
[399838318,1766725842446,-744.49641742,0.00016438,2]
[399838319,1766725842457,-10195.56443735,0.00016468,2]
[399838320,1766725842467,-150.0,0.00016562,2]
[399838321,1766725842477,-150.0,0.00016562,2]
[399838322,1766725842487,-150.0,0.00016562,2]
[399838323,1766725842497,-201.1222361,0.00016562,2]
[399838324,1766725842507,-500.0,0.00016562,2]
[399838325,1766725842522,-157.89219015,0.00016562,2]
[399838326,1766725842532,-193.17511814,0.00016589,2]
[399838327,1766725842542,-150.0,0.00016589,2]
[399838328,1766725842552,-150.0,0.00016589,2]
[399838329,1766725842562,-500.0,0.00016589,2]
[399838330,1766725842572,-10195.56443735,0.00016612,2]
[399838331,1766725842582,-150.0,0.00016617,2]
[399838332,1766725842592,-211.99403485,0.00016617,2]
[399838333,1766725842602,-500.0,0.00016617,2]
[399838334,1766725842611,-168.0,0.00016644,2]
[399838335,1766725842621,-500.0,0.00016644,2]
[399838336,1766725842631,-1340.64193132,0.0001666,2]
[399838337,1766725842642,-500.0,0.00016672,2]
[399838338,1766725842652,-150.0,0.00016685,2]
[399838339,1766725842663,-150.0,0.00016685,2]
[399838340,1766725842673,-150.0,0.00016685,2]
[399838341,1766725842683,-150.0,0.00016685,2]
[399838342,1766725842694,-150.0,0.00016685,2]
[399838343,1766725842705,-150.0,0.00016685,2]
[399838344,1766725842716,-150.0,0.00016685,2]
[399838345,1766725842725,-150.0,0.00016685,2]
[399838346,1766725842735,-150.0,0.00016685,2]
[399838347,1766725842745,-595.37131296,0.00016697,2]
[399838348,1766725842785,-500.0,0.00016699,2]
[399838349,1766725842795,-150.0,0.000167,2]
[399838350,1766725842805,-150.0,0.00016712,2]
[399838351,1766725842815,-150.0,0.00016712,2]
[399838352,1766725842824,-150.0,0.00016712,2]
[399838353,1766725842834,-150.0,0.00016712,2]
[399838354,1766725842843,-500.0,0.00016726,2]
[399838355,1766725842853,-500.43644323,0.00016731,2]
[399838356,1766725842863,-492.61577281,0.00016731,2]
[399838357,1766725842872,-500.4525284,0.00016731,2]
[399838358,1766725842884,-680.51529668,0.00016731,2]
[399838360,1766725842893,-799.72437888,0.00016731,2]
[399838362,1766725842907,-1000.0,0.00016731,2]
[399838363,1766725842917,-1822.0,0.00016738,2]
[399838364,1766725842927,-571.61372458,0.00016754,2]
[399838365,1766725842936,-10195.56443735,0.00016756,2]
[399838366,1766725842947,-1000.0,0.000168,2]
[399838367,1766725842957,-150.0,0.000168,2]
[399838368,1766725842967,-150.0,0.000168,2]
[399838369,1766725842976,-150.0,0.000168,2]
[399838370,1766725842986,-581.60962426,0.00016815,2]
[399838371,1766725842996,-605.74148992,0.0001682,2]
[399838372,1766725843006,-26249.10218768,0.0001683,2]
[399838373,1766725843016,-1822.0,0.00016832,2]
[399838374,1766725843025,-1822.0,0.00016837,2]
[399838375,1766725843035,-195.0,0.0001685,2]
[399838376,1766725843045,-1267.169,0.0001686,2]
[399838378,1766725843055,-433.435,0.0001686,2]
[399838380,1766725843064,-4808.0,0.0001686,2]
[399838381,1766725843074,-2430.0,0.0001686,2]
[399838382,1766725843084,-564.0,0.0001686,2]
[399838383,1766725843094,-200.0,0.00016864,2]
[399838384,1766725843107,-168.0,0.00016893,2]
[399838385,1766725843117,-1189.4072,0.000169,2]
[399838386,1766725843127,-189.35183205,0.000169,2]
[399838387,1766725843137,-1020.10210191,0.000169,2]
[399838388,1766725843147,-10195.56443735,0.000169,2]
[399838389,1766725843158,-873.9074616,0.000169,2]
[399838390,1766725843168,-152.94489914,0.000169,2]
[399838391,1766725843178,-391.52083002,0.000169,2]
[399838392,1766725843188,-150.0,0.00016973,2]
[399838393,1766725843197,-150.0,0.00016973,2]
[399838394,1766725843208,-152.0,0.0001698,3]
[399838395,1766725843219,-605.74148992,0.0001699,2]
[399838396,1766725843228,-605.74148992,0.0001699,2]
[399838397,1766725843239,-160.59250585,0.00016995,2]
[399838398,1766725843256,-17160.3840116,0.00016997,2]
[399838399,1766725843266,-6874.9279193,0.00016997,2]
[399838400,1766725843276,-354095.7979476,0.00016997,2]
[399838401,1766725843288,-2388.3571237,0.00016998,2]
[399838402,1766725843301,-80601.330687,0.00016998,2]
[399838403,1766725843311,-1164.42851987,0.00016999,5]
[399838404,1766725843321,-1164.42851987,0.00016999,5]
[399838405,1766725843331,-1164.42851986,0.00016999,5]
[399838406,1766725843343,-185.4473919,0.00016999,2]
[399838407,1766725843352,-262.37897121,0.00016999,2]
[399838408,1766725843363,-300.0,0.00016999,2]
[399838409,1766725843373,-671.12280925,0.00016999,2]
[399838410,1766725843383,-1000.0,0.00016999,2]
[399838411,1766725843393,-1000.0,0.00016999,2]
[399838412,1766725843403,-1000.0,0.00016999,2]
[399838413,1766725843413,-1000.0,0.00016999,2]
[399838414,1766725843423,-1000.0,0.00016999,2]
[399838415,1766725843433,-1000.0,0.00016999,2]
[399838416,1766725843443,-2059416.3684481,0.00017,2]
[399838417,1766725843460,-324.4526,0.00017,2]
[399838418,1766725843472,-1031856.74675538,0.00017,2]
[399838419,1766725843482,-778.54356996,0.00017,2]
[399838420,1766725843492,-2619680.53540962,0.00017,2]
[399838421,1766725843511,-145478.33284311,0.00017,2]
[399838422,1766725844239,-5798.73450971,0.00016255,2]
[399838423,1766725844250,-307918.84843919,0.00017,2]
[399838424,1766725844514,-15224.54846544,0.00017,2]
[399838425,1766725844526,-507.24097996,0.00017,2]
[399838429,1766725846077,-5798.73450971,0.00016416,2]
[399838430,1766725846087,-62766.78310242,0.00017,2]
[399838431,1766725846298,-1316.6363755,0.00017,2]
[399838432,1766725846312,-363.34314425,0.00017,2]
[399838491,1766725990114,417.99683017,0.000119,2]
[399838539,1766726869490,5000.0,0.00014,3]
[399838543,1766726887327,595.0,0.000226,120]
[399838572,1766726951324,4000.0,0.00012,2]
[399838577,1766727021217,162.5,7.145e-05,2]
[399838578,1766727021431,162.5,0.00010717,2]
[399838593,1766727032170,-259.11,0.000135,2]
[399838594,1766727032183,-704.890961,0.000135,2]
[399838595,1766727032196,-4035.999039,0.000135,2]
[399838596,1766727032206,-261.0,0.000135,2]
[399838597,1766727032215,-195.0,0.00013599,2]
[399838598,1766727032227,-1000.0,0.00013699,2]
[399838599,1766727032241,-77.82998329,0.00013847,2]
[399838600,1766727032253,-222.17001671,0.00013847,2]
[399838601,1766727032264,-300.0,0.00013847,2]
[399838602,1766727032275,-71.51558172,0.00013847,2]
[399838614,1766727038256,-232.98596534,0.00013847,2]
[399838615,1766727038267,-59.71037066,0.00013966,2]
[399838616,1766727038281,-540.28962934,0.00013966,2]
[399838617,1766727038292,-450.69714234,0.00013966,2]
[399838618,1766727038306,-149.30285766,0.00013966,2]
[399838619,1766727038317,-670.40341196,0.00013966,2]
[399838620,1766727038327,-975.08515144,0.00013966,2]
[399838621,1766727038339,-298.09236327,0.00013966,2]
[399838622,1766727038485,-825.13,0.00013966,2]
[399838624,1766727040403,-401.69248529,0.00013966,2]
[399838625,1766727040414,-2500.0,0.00013966,2]
[399838626,1766727040424,-2500.0,0.00013966,2]
[399838627,1766727040435,-162.5,0.0001429,2]
[399838628,1766727040445,-969.45,0.00014472,2]
[399838629,1766727040455,-1200.0,0.00014561,2]
[399838630,1766727040466,-300.0,0.00014561,2]
[399838631,1766727040477,-500.0,0.00014562,2]
[399838632,1766727040488,-373.26892497,0.00014562,2]
[399838633,1766727040503,-500.0,0.00014562,2]
[399838634,1766727040514,-500.0,0.00014562,2]
[399838635,1766727040526,-500.0,0.00014562,2]
[399838636,1766727040537,-500.0,0.00014562,2]
[399838637,1766727040548,-500.0,0.00014562,2]
[399838638,1766727040559,-499.99999999,0.00014562,2]
[399838639,1766727040569,-1200.0,0.00014562,2]
[399838640,1766727040580,-25500.13,0.00014563,2]
[399838641,1766727040591,-250.0,0.0001485,2]
[399838642,1766727040606,-195.0,0.0001485,2]
[399838643,1766727040616,-1363.21598757,0.0001485,4]
[399838644,1766727040626,-600.0,0.0001485,2]
[399838645,1766727040639,-2500.0,0.0001485,2]
[399838646,1766727040650,-300.0,0.0001485,2]
[399838647,1766727040661,-166.7,0.00014936,2]
[399838648,1766727040674,-2637.88237455,0.00015,14]
[399838649,1766727040687,-395.00780696,0.00015052,2]
[399838650,1766727040698,-1000000.0,0.00015053,2]
[399838651,1766727040708,-177.44,0.00015083,2]
[399838652,1766727040719,-163.61,0.00015113,2]
[399838653,1766727040730,-119992.5,0.00015153,2]
[399838654,1766727040741,-150.0,0.00015288,2]
[399838655,1766727040751,-150.0,0.00015288,2]
[399838656,1766727040762,-150.0,0.00015288,2]
[399838657,1766727040773,-150.0,0.00015288,2]
[399838658,1766727040782,-150.0,0.00015288,2]
[399838659,1766727040793,-150.0,0.00015288,2]
[399838660,1766727040803,-150.0,0.00015288,2]
[399838661,1766727040814,-152.42122212,0.00015288,2]
[399838662,1766727040824,-150.0,0.00015288,2]
[399838663,1766727040835,-150.0,0.00015288,2]
[399838664,1766727040845,-186.14952116,0.0001533,2]
[399838665,1766727040855,-425.3,0.0001533,2]
[399838666,1766727040871,-166.14,0.0001533,2]
[399838667,1766727040881,-299.99,0.0001533,2]
[399838668,1766727040892,-150.99,0.0001533,2]
[399838669,1766727040902,-999.99,0.0001533,2]
[399838670,1766727040914,-9999.99,0.0001533,2]
[399838671,1766727040924,-3767.97607596,0.0001533,2]
[399838672,1766727040934,-173.05731677,0.0001533,2]
[399838673,1766727040945,-150.0,0.00015351,2]
[399838674,1766727040955,-150.0,0.00015413,2]
[399838675,1766727040966,-457.42264736,0.00015429,2]
[399838676,1766727040977,-510.57439861,0.00015429,2]
[399838677,1766727040988,-508.89746459,0.00015429,2]
[399838678,1766727040998,-516.96732434,0.00015429,2]
[399838679,1766727041008,-546.74327399,0.00015429,2]
[399838680,1766727041019,-946.641,0.00015429,2]
[399838681,1766727041030,-9999.99,0.00015429,2]
[399838682,1766727041041,-9999.99,0.00015429,2]
[399838683,1766727041051,-10116.76,0.00015429,2]
[399838684,1766727041061,-150.99,0.00015429,2]
[399838685,1766727041071,-499.99,0.00015429,2]
[399838686,1766727041081,-705.83,0.00015429,2]
[399838687,1766727041091,-1000.0,0.0001543,2]
[399838688,1766727041102,-150.0,0.00015476,2]
[399838689,1766727041113,-3767.97607588,0.00015504,2]
[399838690,1766727041123,-150.0,0.0001553,2]
[399838691,1766727041133,-150.0,0.00015539,2]
[399838692,1766727041143,-150.0,0.00015602,2]
[399838693,1766727041154,-150.0,0.00015627,2]
[399838694,1766727041165,-150.0,0.00015665,2]
[399838695,1766727041176,-4526.66,0.00015674,2]
[399838696,1766727041186,-3767.97607588,0.00015679,2]
[399838697,1766727041196,-999.0,0.00015685,3]
[399838698,1766727041207,-151.0,0.0001569,2]
[399838699,1766727041216,-150.0,0.00015728,2]
[399838700,1766727041231,-150.0,0.00015773,2]
[399838701,1766727041241,-1000.0,0.00015774,2]
[399838702,1766727041251,-150.0,0.00015791,2]
[399838703,1766727041262,-3767.97607588,0.00015853,2]
[399838704,1766727041273,-150.0,0.00015854,2]
[399838705,1766727041284,-150.0,0.00015854,2]
[399838706,1766727041295,-150.0,0.00015854,2]
[399838707,1766727041306,-150.0,0.00015917,2]
[399838708,1766727041316,-420.0,0.00015943,2]
[399838709,1766727041326,-150.0,0.00015967,2]
[399838710,1766727041336,-150.0,0.0001598,2]
[399838711,1766727041347,-502.66220405,0.00016,2]
[399838712,1766727041357,-24515.6514645,0.00016,4]
[399838713,1766727041368,-150.0,0.00016016,2]
[399838714,1766727041379,-1680.0,0.00016017,2]
[399838715,1766727041389,-3767.97607588,0.00016028,2]
[399838716,1766727041400,-162.0,0.0001604,2]
[399838717,1766727041410,-150.0,0.00016043,2]
[399838718,1766727041425,-150.0,0.00016106,2]
[399838719,1766727041435,-6507.64,0.00016116,2]
[399838720,1766727041446,-150.0,0.00016137,2]
[399838721,1766727041456,-150.0,0.00016137,2]
[399838722,1766727041466,-3872.14450341,0.00016149,2]
[399838723,1766727041477,-279.92160861,0.00016149,2]
[399838724,1766727041487,-574.12855637,0.00016149,2]
[399838725,1766727041497,-151.0,0.00016149,2]
[399838726,1766727041508,-500.0,0.00016149,2]
[399838727,1766727041517,-500.0,0.00016149,2]
[399838728,1766727041528,-500.0,0.00016149,2]
[399838729,1766727041539,-500.0,0.00016149,2]
[399838730,1766727041549,-500.0,0.00016149,2]
[399838731,1766727041559,-500.0,0.00016149,2]
[399838732,1766727041569,-500.0,0.00016149,2]
[399838733,1766727041580,-500.0,0.00016149,2]
[399838734,1766727041590,-322.6107,0.00016149,2]
[399838735,1766727041603,-500.0,0.00016149,2]
[399838736,1766727041612,-500.0,0.00016149,2]
[399838737,1766727041622,-500.0,0.00016149,2]
[399838738,1766727041632,-620.0,0.00016149,2]
[399838739,1766727041644,-150.0,0.00016168,2]
[399838740,1766727041654,-179.46,0.00016183,2]
[399838741,1766727041665,-168.40038853,0.00016183,2]
[399838742,1766727041675,-500.89852069,0.00016183,2]
[399838743,1766727041685,-500.0,0.00016183,2]
[399838744,1766727041695,-206.77102158,0.00016183,2]
[399838745,1766727041705,-501.0445462,0.00016183,2]
[399838746,1766727041715,-500.88737108,0.00016183,2]
[399838747,1766727041727,-331.00488176,0.00016183,2]
[399838748,1766727041737,-590.62865017,0.00016183,2]
[399838749,1766727041747,-160.69712544,0.00016183,2]
[399838750,1766727041756,-200.27562112,0.00016183,2]
[399838751,1766727041767,-500.0,0.00016183,2]
[399838752,1766727041780,-500.40933379,0.00016183,2]
[399838753,1766727041791,-500.0,0.00016183,2]